fUSD/lending_fUSD_20250611
["ID","MTS","AMOUNT","RATE_DAILY","PERIOD"]
[365417508,1749660657640,-490.0,0.00019671,2]
[365417509,1749660657650,-490.0,0.00019671,2]
[365417510,1749660657659,-490.0,0.00019671,2]
[365417511,1749660657668,-490.0,0.00019671,2]
[365417512,1749660657678,-490.0,0.00019671,2]
[365417513,1749660657687,-490.0,0.00019671,2]
[365417514,1749660657696,-253.61409025,0.00019671,2]
[365417515,1749660657706,-454.57272779,0.00019671,2]
[365417516,1749660657715,-490.0,0.00019671,2]
[365417517,1749660657724,-490.0,0.00019671,2]
[365417518,1749660657733,-440.0,0.00019671,2]
[365417519,1749660657743,-490.0,0.00019671,2]
[365417520,1749660657752,-256.92648121,0.00019671,2]
[365417521,1749660657761,-490.0,0.00019671,2]
[365417522,1749660657770,-490.0,0.00019671,2]
[365417523,1749660657779,-219.784663,0.00019671,2]
[365417524,1749660657788,-490.0,0.00019671,2]
[365417525,1749660657797,-490.0,0.00019671,2]
[365417526,1749660657806,-490.0,0.00019671,2]
[365417527,1749660657815,-490.0,0.00019671,2]
[365417528,1749660657824,-490.0,0.00019671,2]
[365417529,1749660657833,-490.0,0.00019671,2]
[365417530,1749660657842,-596.801455,0.00019671,2]
[365417531,1749660657851,-490.0,0.00019671,2]
[365417532,1749660657859,-490.0,0.00019671,2]
[365417533,1749660657868,-490.0,0.00019671,2]
[365417534,1749660657877,-490.0,0.00019671,2]
[365417535,1749660657886,-490.0,0.00019671,2]
[365417536,1749660657895,-490.0,0.00019671,2]
[365417537,1749660657903,-396.902951,0.00019671,2]
[365417538,1749660657912,-490.0,0.00019671,2]
[365417539,1749660657921,-569.63670321,0.00019671,2]
[365417540,1749660657931,-490.0,0.00019671,2]
[365417541,1749660657939,-490.0,0.00019671,2]
[365417542,1749660657948,-490.0,0.00019671,2]
[365417543,1749660657957,-490.0,0.00019671,2]
[365417544,1749660657966,-196.58465535,0.00019671,2]
[365417545,1749660657975,-490.0,0.00019671,2]
[365417546,1749660657984,-490.0,0.00019671,2]
[365417547,1749660657993,-490.0,0.00019671,2]
[365417548,1749660658002,-490.0,0.00019671,2]
[365417549,1749660658011,-490.0,0.00019671,2]
[365417550,1749660658020,-567.39,0.00019671,2]
[365417551,1749660658028,-490.0,0.00019671,2]
[365417552,1749660658037,-490.0,0.00019671,2]
[365417553,1749660658047,-490.0,0.00019671,2]
[365417554,1749660658056,-490.0,0.00019671,2]
[365417555,1749660658065,-490.0,0.00019671,2]
[365417556,1749660658075,-420.73116633,0.00019671,2]
[365417557,1749660658083,-490.0,0.00019671,2]
[365417558,1749660658092,-415.2933296,0.00019671,2]
[365417559,1749660658102,-490.0,0.00019671,2]
[365417560,1749660658111,-490.0,0.00019671,2]
[365417561,1749660658120,-501.07,0.00019671,2]
[365417562,1749660658129,-490.0,0.00019671,2]
[365417563,1749660658138,-552.61,0.00019671,2]
[365417564,1749660658147,-490.0,0.00019671,2]
[365417565,1749660658156,-490.0,0.00019671,2]
[365417566,1749660658165,-490.0,0.00019671,2]
[365417567,1749660658174,-490.0,0.00019671,2]
[365417568,1749660658183,-490.0,0.00019671,2]
[365417569,1749660658192,-490.0,0.00019671,2]
[365417570,1749660658200,-490.0,0.00019671,2]
[365417571,1749660658210,-490.0,0.00019671,2]
[365417572,1749660658218,-490.0,0.00019671,2]
[365417573,1749660658227,-787.58,0.00019671,2]
[365417574,1749660658236,-490.0,0.00019671,2]
[365417575,1749660658245,-490.0,0.00019671,2]
[365417576,1749660658254,-490.0,0.00019671,2]
[365417577,1749660658264,-490.0,0.00019671,2]
[365417578,1749660658273,-490.0,0.00019671,2]
[365417579,1749660658282,-166.10809095,0.00019671,2]
[365417580,1749660658292,-490.0,0.00019671,2]
[365417581,1749660658304,-600.66,0.00019671,2]
[365417582,1749660658313,-543.66425339,0.00019671,2]
[365417583,1749660658323,-490.0,0.00019671,2]
[365417584,1749660658332,-490.0,0.00019671,2]
[365417585,1749660658342,-490.0,0.00019671,2]
[365417586,1749660658352,-490.0,0.00019671,2]
[365417587,1749660658360,-490.0,0.00019671,2]
[365417588,1749660658370,-559.83,0.00019671,2]
[365417589,1749660658379,-490.0,0.00019671,2]
[365417590,1749660658388,-490.0,0.00019671,2]
[365417591,1749660658397,-490.0,0.00019671,2]
[365417592,1749660658407,-490.0,0.00019671,2]
[365417593,1749660658416,-490.0,0.00019671,2]
[365417594,1749660658425,-366.72195456,0.00019671,2]
[365417595,1749660658434,-490.0,0.00019671,2]
[365417596,1749660658444,-490.0,0.00019671,2]
[365417597,1749660658453,-532.47,0.00019671,2]
[365417598,1749660658462,-490.0,0.00019671,2]
[365417599,1749660658471,-490.0,0.00019671,2]
[365417600,1749660658481,-490.0,0.00019671,2]
[365417601,1749660658490,-455.44,0.00019671,2]
[365417602,1749660658502,-490.0,0.00019671,2]
[365417603,1749660658512,-880.05,0.00019671,2]
[365417604,1749660658523,-490.0,0.00019671,2]
[365417605,1749660658532,-490.0,0.00019671,2]
[365417606,1749660658543,-490.0,0.00019671,2]
[365417607,1749660658554,-490.0,0.00019671,2]
[365417608,1749660658564,-795.36,0.00019671,2]
[365417609,1749660658573,-547.48,0.00019671,2]
[365417610,1749660658583,-553.1,0.00019671,2]
[365417611,1749660658593,-490.0,0.00019671,2]
[365417612,1749660658603,-490.0,0.00019671,2]
[365417613,1749660658613,-490.0,0.00019671,2]
[365417614,1749660658624,-490.0,0.00019671,2]
[365417615,1749660658634,-1017.09,0.00019671,2]
[365417616,1749660658643,-706.31,0.00019671,2]
[365417617,1749660658652,-490.0,0.00019671,2]
[365417618,1749660658662,-490.0,0.00019671,2]
[365417619,1749660658671,-490.0,0.00019671,2]
[365417620,1749660658680,-490.0,0.00019671,2]
[365417621,1749660658689,-461.14,0.00019671,2]
[365417622,1749660658698,-504.65,0.00019671,2]
[365417623,1749660658707,-490.0,0.00019671,2]
[365417624,1749660658716,-490.0,0.00019671,2]
[365417625,1749660658726,-490.0,0.00019671,2]
[365417626,1749660658735,-490.0,0.00019671,2]
[365417627,1749660658744,-490.0,0.00019671,2]
[365417628,1749660658753,-490.0,0.00019671,2]
[365417629,1749660658763,-1001.14,0.00019671,2]
[365417630,1749660658772,-1022.13,0.00019671,2]
[365417631,1749660658782,-781.4,0.00019671,2]
[365417632,1749660658791,-490.0,0.00019671,2]
[365417633,1749660658800,-490.0,0.00019671,2]
[365417634,1749660658809,-490.0,0.00019671,2]
[365417635,1749660658818,-651.77,0.00019671,2]
[365417636,1749660658827,-490.0,0.00019671,2]
[365417637,1749660658836,-490.0,0.00019671,2]
[365417638,1749660658845,-738.41,0.00019671,2]
[365417639,1749660658854,-529.38,0.00019671,2]
[365417640,1749660658863,-490.0,0.00019671,2]
[365417641,1749660658872,-490.0,0.00019671,2]
[365417642,1749660658881,-490.0,0.00019671,2]
[365417643,1749660658890,-875.41,0.00019671,2]
[365417644,1749660658899,-490.0,0.00019671,2]
[365417645,1749660658908,-490.0,0.00019671,2]
[365417646,1749660658917,-490.0,0.00019671,2]
[365417647,1749660658926,-490.0,0.00019671,2]
[365417648,1749660658935,-490.0,0.00019671,2]
[365417649,1749660658944,-455.62,0.00019671,2]
[365417650,1749660658953,-496.29,0.00019671,2]
[365417651,1749660658962,-328.89734682,0.00019671,2]
[365417652,1749660658972,-490.0,0.00019671,2]
[365417653,1749660658981,-490.0,0.00019671,2]
[365417654,1749660658990,-526.23,0.00019671,2]
[365417655,1749660658999,-490.0,0.00019671,2]
[365417656,1749660659008,-490.0,0.00019671,2]
[365417657,1749660659017,-490.0,0.00019671,2]
[365417658,1749660659026,-610.84,0.00019671,2]
[365417659,1749660659034,-490.0,0.00019671,2]
[365417660,1749660659043,-490.0,0.00019671,2]
[365417661,1749660659052,-542.93,0.00019671,2]
[365417662,1749660659061,-490.0,0.00019671,2]
[365417663,1749660659070,-1076.9,0.00019671,2]
[365417664,1749660659079,-490.0,0.00019671,2]
[365417665,1749660659088,-490.0,0.00019671,2]
[365417666,1749660659099,-490.0,0.00019671,2]
[365417667,1749660659108,-841.76,0.00019671,2]
[365417668,1749660659117,-490.0,0.00019671,2]
[365417669,1749660659127,-490.0,0.00019671,2]
[365417670,1749660659138,-490.0,0.00019671,2]
[365417671,1749660659147,-490.0,0.00019671,2]
[365417672,1749660659157,-490.0,0.00019671,2]
[365417673,1749660659166,-490.0,0.00019671,2]
[365417674,1749660659175,-394.3,0.00019671,2]
[365417675,1749660659184,-490.0,0.00019671,2]
[365417676,1749660659193,-246.88,0.00019671,2]
[365417677,1749660659203,-490.0,0.00019671,2]
[365417678,1749660659212,-610.24,0.00019671,2]
[365417679,1749660659222,-490.0,0.00019671,2]
[365417680,1749660659231,-234.88,0.00019671,2]
[365417681,1749660659240,-490.0,0.00019671,2]
[365417682,1749660659249,-490.0,0.00019671,2]
[365417683,1749660659259,-300.46514052,0.00019671,2]
[365417684,1749660659268,-490.0,0.00019671,2]
[365417685,1749660659277,-490.0,0.00019671,2]
[365417686,1749660659287,-490.0,0.00019671,2]
[365417687,1749660659299,-490.0,0.00019671,2]
[365417688,1749660659308,-490.0,0.00019671,2]
[365417689,1749660659318,-490.0,0.00019671,2]
[365417690,1749660659327,-1368.39,0.00019671,2]
[365417691,1749660659337,-490.0,0.00019671,2]
[365417692,1749660659347,-564.27,0.00019671,2]
[365417693,1749660659356,-589.3,0.00019671,2]
[365417694,1749660659367,-490.0,0.00019671,2]
[365417695,1749660659379,-490.0,0.00019671,2]
[365417696,1749660659389,-383.73786008,0.00019671,2]
[365417697,1749660659398,-490.0,0.00019671,2]
[365417698,1749660659408,-490.0,0.00019671,2]
[365417699,1749660659418,-703.44,0.00019671,2]
[365417700,1749660659427,-490.0,0.00019671,2]
[365417701,1749660659436,-501.05,0.00019671,2]
[365417702,1749660659446,-493.75,0.00019671,2]
[365417703,1749660659456,-243.13849451,0.00019671,2]
[365417704,1749660659466,-490.0,0.00019671,2]
[365417705,1749660659476,-490.0,0.00019671,2]
[365417706,1749660659486,-490.0,0.00019671,2]
[365417707,1749660659495,-605.8,0.00019671,2]
[365417708,1749660659505,-490.0,0.00019671,2]
[365417709,1749660659515,-490.0,0.00019671,2]
[365417710,1749660659524,-1108.7,0.00019671,2]
[365417711,1749660659533,-490.0,0.00019671,2]
[365417712,1749660659542,-490.0,0.00019671,2]
[365417713,1749660659552,-398.36,0.00019671,2]
[365417714,1749660659561,-250.0,0.00019671,2]
[365417715,1749660659571,-490.0,0.00019671,2]
[365417716,1749660659580,-490.0,0.00019671,2]
[365417717,1749660659590,-450.0,0.00019671,2]
[365417718,1749660659599,-490.0,0.00019671,2]
[365417719,1749660659609,-490.0,0.00019671,2]
[365417720,1749660659618,-490.0,0.00019671,2]
[365417721,1749660659628,-587.47,0.00019671,2]
[365417722,1749660659638,-490.0,0.00019671,2]
[365417723,1749660659648,-490.0,0.00019671,2]
[365417724,1749660659658,-490.0,0.00019671,2]
[365417725,1749660659667,-1252.39,0.00019671,2]
[365417726,1749660659677,-490.0,0.00019671,2]
[365417727,1749660659687,-2427.27,0.00019671,2]
[365417728,1749660659696,-490.0,0.00019671,2]
[365417729,1749660659706,-490.46,0.00019671,2]
[365417730,1749660659715,-1069.63,0.00019671,2]
[365417731,1749660659726,-490.0,0.00019671,2]
[365417732,1749660659735,-490.0,0.00019671,2]
[365417733,1749660659745,-1490.84,0.00019671,2]
[365417734,1749660659754,-490.0,0.00019671,2]
[365417735,1749660659764,-353.55,0.00019671,2]
[365417736,1749660659774,-490.0,0.00019671,2]
[365417737,1749660659783,-1929.27,0.00019671,2]
[365417738,1749660659794,-631.01435143,0.00019671,2]
[365417739,1749660659804,-490.0,0.00019671,2]
[365417740,1749660659813,-903.73,0.00019671,2]
[365417741,1749660659823,-2370.05,0.00019671,2]
[365417742,1749660659833,-751.31,0.00019671,2]
[365417743,1749660659843,-490.0,0.00019671,2]
[365417744,1749660659852,-4168.24,0.00019671,2]
[365417745,1749660659862,-210.14456352,0.00019671,2]
[365417746,1749660659871,-490.0,0.00019671,2]
[365417747,1749660659881,-617.74,0.00019671,2]
[365417748,1749660659891,-490.0,0.00019671,2]
[365417749,1749660659900,-2151.44,0.00019671,2]
[365417750,1749660659909,-530.23,0.00019671,2]
[365417751,1749660659919,-630.67,0.00019671,2]
[365417752,1749660659928,-490.0,0.00019671,2]
[365417753,1749660659938,-821.66,0.00019671,2]
[365417754,1749660659947,-3270.35,0.00019671,2]
[365417755,1749660659956,-511.03,0.00019671,2]
[365417756,1749660659965,-509.78,0.00019671,2]
[365417757,1749660659977,-490.0,0.00019671,2]
[365417758,1749660659986,-1000.0,0.00019671,2]
[365417759,1749660659995,-490.0,0.00019671,2]
[365417760,1749660660004,-517.59,0.00019671,2]
[365417761,1749660660014,-6106.1,0.00019671,2]
[365417762,1749660660023,-490.0,0.00019671,2]
[365417763,1749660660033,-919.46,0.00019671,2]
[365417764,1749660660043,-642.65,0.00019671,2]
[365417765,1749660660053,-490.0,0.00019671,2]
[365417766,1749660660063,-440.0,0.00019671,2]
[365417767,1749660660073,-490.0,0.00019671,2]
[365417768,1749660660083,-503.54,0.00019671,2]
[365417769,1749660660092,-1003.24,0.00019671,2]
[365417770,1749660660101,-490.0,0.00019671,2]
[365417771,1749660660111,-521.67,0.00019671,2]
[365417772,1749660660121,-589.8,0.00019671,2]
[365417773,1749660660131,-1345.03,0.00019671,2]
[365417774,1749660660141,-855.48,0.00019671,2]
[365417775,1749660660150,-834.67,0.00019671,2]
[365417776,1749660660160,-490.0,0.00019671,2]
[365417777,1749660660169,-490.0,0.00019671,2]
[365417778,1749660660179,-490.0,0.00019671,2]
[365417779,1749660660189,-790.05,0.00019671,2]
[365417780,1749660660199,-947.83,0.00019671,2]
[365417781,1749660660210,-512.7,0.00019671,2]
[365417782,1749660660220,-317.27,0.00019671,2]
[365417783,1749660660230,-908.62,0.00019671,2]
[365417784,1749660660240,-764.91,0.00019671,2]
[365417785,1749660660249,-490.0,0.00019671,2]
[365417786,1749660660259,-490.0,0.00019671,2]
[365417787,1749660660268,-490.0,0.00019671,2]
[365417788,1749660660278,-5930.08,0.00019671,2]
[365417789,1749660660288,-1579.69,0.00019671,2]
[365417790,1749660660301,-2917.28,0.00019671,2]
[365417791,1749660660311,-575.18,0.00019671,2]
[365417792,1749660660321,-490.0,0.00019671,2]
[365417793,1749660660331,-1193.27,0.00019671,2]
[365417794,1749660660341,-611.34,0.00019671,2]
[365417795,1749660660527,-490.89,0.00019671,2]
[365417796,1749660660544,-490.0,0.00019671,2]
[365417797,1749660660554,-490.0,0.00019671,2]
[365417798,1749660660563,-549.23,0.00019671,2]
[365417799,1749660660572,-490.0,0.00019671,2]
[365417800,1749660660582,-611.95,0.00019671,2]
[365417801,1749660660593,-936.29,0.00019671,2]
[365417802,1749660660602,-496.94,0.00019671,2]
[365417803,1749660660611,-490.0,0.00019671,2]
[365417804,1749660660621,-490.0,0.00019671,2]
[365417805,1749660660629,-1060.78,0.00019671,2]
[365417806,1749660660639,-662.42,0.00019671,2]
[365417807,1749660660649,-1513.94,0.00019671,2]
[365417808,1749660660658,-3883.39,0.00019671,2]
[365417809,1749660660668,-995.94,0.00019671,2]
[365417810,1749660660677,-725.66,0.00019671,2]
[365417811,1749660660686,-768.41,0.00019671,2]
[365417812,1749660660696,-490.0,0.00019671,2]
[365417813,1749660660705,-490.0,0.00019671,2]
[365417814,1749660660715,-772.21,0.00019671,2]
[365417815,1749660660727,-490.0,0.00019671,2]
[365417816,1749660660737,-490.0,0.00019671,2]
[365417817,1749660660746,-490.0,0.00019671,2]
[365417818,1749660660755,-662.53,0.00019671,2]
[365417819,1749660660764,-490.0,0.00019671,2]
[365417820,1749660660773,-1697.68,0.00019671,2]
[365417821,1749660660783,-537.47,0.00019671,2]
[365417822,1749660660793,-490.0,0.00019671,2]
[365417823,1749660660802,-969.69,0.00019671,2]
[365417824,1749660660811,-490.0,0.00019671,2]
[365417825,1749660660821,-601.27,0.00019671,2]
[365417826,1749660660830,-869.0,0.00019671,2]
[365417827,1749660660840,-490.0,0.00019671,2]
[365417828,1749660660850,-490.0,0.00019671,2]
[365417829,1749660660860,-1413.48,0.00019671,2]
[365417830,1749660660869,-839.04,0.00019671,2]
[365417831,1749660660878,-490.0,0.00019671,2]
[365417832,1749660660888,-490.0,0.00019671,2]
[365417833,1749660660897,-154.83,0.00019671,2]
[365417834,1749660660906,-1879.27,0.00019671,2]
[365417835,1749660660916,-245.29267487,0.00019671,2]
[365417836,1749660660926,-297.28,0.00019671,2]
[365417837,1749660660935,-490.0,0.00019671,2]
[365417838,1749660660945,-286.36,0.00019671,2]
[365417839,1749660660954,-490.0,0.00019671,2]
[365417840,1749660660963,-1505.54,0.00019671,2]
[365417841,1749660660973,-490.0,0.00019671,2]
[365417842,1749660660982,-604.78,0.00019671,2]
[365417843,1749660660992,-638.77017082,0.00019671,2]
[365417844,1749660661001,-626.47,0.00019671,2]
[365417845,1749660661010,-357.2,0.00019671,2]
[365417846,1749660661020,-490.0,0.00019671,2]
[365417847,1749660661029,-745.95,0.00019671,2]
[365417848,1749660661039,-490.0,0.00019671,2]
[365417849,1749660661048,-1372.55,0.00019671,2]
[365417850,1749660661058,-490.0,0.00019671,2]
[365417851,1749660661067,-490.0,0.00019671,2]
[365417852,1749660661077,-433.21785094,0.00019671,2]
[365417853,1749660661086,-562.59,0.00019671,2]
[365417854,1749660661096,-490.0,0.00019671,2]
[365417855,1749660661105,-490.0,0.00019671,2]
[365417856,1749660661114,-513.3,0.00019671,2]
[365417857,1749660661124,-490.0,0.00019671,2]
[365417858,1749660661134,-490.0,0.00019671,2]
[365417859,1749660661143,-1145.54,0.00019671,2]
[365417860,1749660661153,-762.07,0.00019671,2]
[365417861,1749660661163,-674.02,0.00019671,2]
[365417862,1749660661173,-490.0,0.00019671,2]
[365417863,1749660661182,-490.0,0.00019671,2]
[365417864,1749660661191,-1474.06,0.00019671,2]
[365417865,1749660661201,-695.03,0.00019671,2]
[365417866,1749660661210,-490.0,0.00019671,2]
[365417867,1749660661220,-490.0,0.00019671,2]
[365417868,1749660661232,-6389.33,0.00019671,2]
[365417869,1749660661243,-490.0,0.00019671,2]
[365417870,1749660661253,-657.39,0.00019671,2]
[365417871,1749660661264,-490.0,0.00019671,2]
[365417872,1749660661274,-475.40014486,0.00019671,2]
[365417873,1749660661284,-490.0,0.00019671,2]
[365417874,1749660661296,-490.0,0.00019671,2]
[365417875,1749660661307,-490.0,0.00019671,2]
[365417876,1749660661316,-490.0,0.00019671,2]
[365417877,1749660661326,-490.0,0.00019671,2]
[365417878,1749660661336,-494.95,0.00019671,2]
[365417879,1749660661347,-490.0,0.00019671,2]
[365417880,1749660661356,-490.0,0.00019671,2]
[365417881,1749660661365,-490.0,0.00019671,2]
[365417882,1749660661376,-805.04,0.00019671,2]
[365417883,1749660661386,-490.0,0.00019671,2]
[365417884,1749660661396,-511.3,0.00019671,2]
[365417885,1749660661406,-579.91,0.00019671,2]
[365417886,1749660661417,-490.0,0.00019671,2]
[365417887,1749660661427,-490.0,0.00019671,2]
[365417888,1749660661436,-1490.41,0.00019671,2]
[365417889,1749660661445,-739.05,0.00019671,2]
[365417890,1749660661455,-766.16,0.00019671,2]
[365417891,1749660661466,-636.67,0.00019671,2]
[365417892,1749660661476,-1647.2,0.00019671,2]
[365417893,1749660661485,-709.31,0.00019671,2]
[365417894,1749660661494,-503.8,0.00019671,2]
[365417895,1749660661504,-785.6,0.00019671,2]
[365417896,1749660661513,-490.0,0.00019671,2]
[365417897,1749660661523,-490.0,0.00019671,2]
[365417898,1749660661532,-490.0,0.00019671,2]
[365417899,1749660661542,-4761.01,0.00019671,2]
[365417900,1749660661552,-490.0,0.00019671,2]
[365417901,1749660661562,-490.0,0.00019671,2]
[365417902,1749660661572,-877.3,0.00019671,2]
[365417903,1749660661583,-490.0,0.00019671,2]
[365417904,1749660661592,-490.0,0.00019671,2]
[365417905,1749660661602,-490.0,0.00019671,2]
[365417906,1749660661612,-2745.15,0.00019671,2]
[365417907,1749660661622,-490.0,0.00019671,2]
[365417908,1749660661632,-602.15,0.00019671,2]
[365417909,1749660661641,-342.83044772,0.00019671,2]
[365417910,1749660661652,-490.0,0.00019671,2]
[365417911,1749660661662,-490.0,0.00019671,2]
[365417912,1749660661671,-490.0,0.00019671,2]
[365417913,1749660661681,-490.0,0.00019671,2]
[365417914,1749660661690,-490.0,0.00019671,2]
[365417915,1749660661700,-1679.04,0.00019671,2]
[365417916,1749660661710,-576.77,0.00019671,2]
[365417917,1749660661720,-490.0,0.00019671,2]
[365417918,1749660661731,-1233.32,0.00019671,2]
[365417919,1749660661740,-490.0,0.00019671,2]
[365417920,1749660661750,-490.0,0.00019671,2]
[365417921,1749660661759,-652.29,0.00019671,2]
[365417922,1749660661769,-490.0,0.00019671,2]
[365417923,1749660661779,-490.0,0.00019671,2]
[365417924,1749660661789,-490.0,0.00019671,2]
[365417925,1749660661800,-952.05,0.00019671,2]
[365417926,1749660661810,-736.69,0.00019671,2]
[365417927,1749660661820,-490.0,0.00019671,2]
[365417928,1749660661830,-1039.64,0.00019671,2]
[365417929,1749660661839,-490.0,0.00019671,2]
[365417930,1749660661850,-2279.09,0.00019671,2]
[365417931,1749660661861,-490.0,0.00019671,2]
[365417932,1749660661871,-738.18,0.00019671,2]
[365417933,1749660661880,-490.0,0.00019671,2]
[365417934,1749660661890,-490.0,0.00019671,2]
[365417935,1749660661900,-490.0,0.00019671,2]
[365417936,1749660661909,-789.34,0.00019671,2]
[365417937,1749660661919,-490.0,0.00019671,2]
[365417938,1749660661929,-490.0,0.00019671,2]
[365417939,1749660661938,-490.0,0.00019671,2]
[365417940,1749660661948,-490.0,0.00019671,2]
[365417941,1749660661958,-490.0,0.00019671,2]
[365417942,1749660661967,-490.0,0.00019671,2]
[365417943,1749660661978,-811.23,0.00019671,2]
[365417944,1749660661987,-490.0,0.00019671,2]
[365417945,1749660661997,-871.69,0.00019671,2]
[365417946,1749660662006,-490.0,0.00019671,2]
[365417947,1749660662016,-490.0,0.00019671,2]
[365417948,1749660662026,-722.34,0.00019671,2]
[365417949,1749660662037,-1148.06,0.00019671,2]
[365417950,1749660662046,-490.0,0.00019671,2]
[365417951,1749660662055,-581.4,0.00019671,2]
[365417952,1749660662065,-490.0,0.00019671,2]
[365417953,1749660662075,-490.0,0.00019671,2]
[365417954,1749660662085,-490.0,0.00019671,2]
[365417955,1749660662094,-250.0,0.00019696,2]
[365417956,1749660662104,-1000.0,0.000197,2]
[365417957,1749660662114,-591.85709222,0.00019717,2]
[365417958,1749660662124,-1000.0,0.000198,2]
[365417959,1749660662134,-591.85709222,0.00019809,2]
[365417960,1749660662143,-183.0,0.00019826,2]
[365417961,1749660662153,-9800.32,0.00019833,2]
[365417962,1749660662162,-3447.26956071,0.00019833,2]
[365417963,1749660662172,-500.0,0.00019833,2]
[365417964,1749660662181,-500.0,0.00019833,2]
[365417965,1749660662191,-500.0,0.00019833,2]
[365417966,1749660662200,-500.0,0.00019833,2]
[365417967,1749660662210,-500.0,0.00019833,2]
[365417968,1749660662220,-2006.11,0.00019834,2]
[365417969,1749660662231,-4174.97,0.00019834,2]
[365417970,1749660662241,-500.0,0.00019834,2]
[365417971,1749660662251,-490.0,0.00019835,2]
[365417972,1749660662260,-490.0,0.00019835,2]
[365417973,1749660662270,-490.0,0.00019835,2]
[365417974,1749660662280,-490.0,0.00019835,2]
[365417975,1749660662290,-490.0,0.00019835,2]
[365417976,1749660662304,-490.0,0.00019835,2]
[365417977,1749660662313,-490.0,0.00019835,2]
[365417978,1749660662323,-490.0,0.00019835,2]
[365417979,1749660662333,-568.62101095,0.00019835,2]
[365417980,1749660662344,-430.28374908,0.00019835,2]
[365417981,1749660662354,-490.0,0.00019835,2]
[365417982,1749660662364,-490.0,0.00019835,2]
[365417983,1749660662375,-490.0,0.00019835,2]
[365417984,1749660662385,-490.0,0.00019835,2]
[365417985,1749660662394,-490.0,0.00019835,2]
[365417986,1749660662404,-490.0,0.00019835,2]
[365417987,1749660662413,-490.0,0.00019835,2]
[365417988,1749660662422,-490.0,0.00019835,2]
[365417989,1749660662432,-490.0,0.00019835,2]
[365417990,1749660662441,-490.0,0.00019835,2]
[365417991,1749660662451,-490.0,0.00019835,2]
[365417992,1749660662461,-490.0,0.00019835,2]
[365417993,1749660662470,-490.0,0.00019835,2]
[365417994,1749660662480,-490.0,0.00019835,2]
[365417995,1749660662490,-490.0,0.00019835,2]
[365417996,1749660662499,-490.0,0.00019835,2]
[365417997,1749660662508,-490.0,0.00019835,2]
[365417998,1749660662518,-490.0,0.00019835,2]
[365417999,1749660662527,-490.0,0.00019835,2]
[365418000,1749660662536,-490.0,0.00019835,2]
[365418001,1749660662545,-490.0,0.00019835,2]
[365418002,1749660662554,-490.0,0.00019835,2]
[365418003,1749660662564,-490.0,0.00019835,2]
[365418004,1749660662573,-490.0,0.00019835,2]
[365418005,1749660662582,-490.0,0.00019835,2]
[365418006,1749660662591,-490.0,0.00019835,2]
[365418007,1749660662601,-490.0,0.00019835,2]